[Event "Titled Tuesday Blitz November 08 Late 2022"]
[White "Dubov, Daniil"]
[Black "Svane, Rasmus"]
[WhiteFideId "24126055"]
[BlackFideId "4657101"]
[WhiteElo "2791"]
[BlackElo "2674"]
[Result "1-0"]
[Round "09"]
[TimeControl "180+1"]
[Date "2022.11.08"]
[WhiteClock "0:00:52"]
[BlackClock "0:00:19"]

1. d4 {[%clk 0:03:00]}  Nf6 {[%clk 0:02:59]} 2. Nf3 {[%clk 0:03:01]}  d5 {[%clk 0:02:59]} 3. c4 {[%clk 0:03:01]}  e6 {[%clk 0:03:00]} 4. g3 {[%clk 0:03:02]}  Be7 {[%clk 0:02:56]} 5. Bg2 {[%clk 0:03:02]}  O-O {[%clk 0:02:57]} 6. O-O {[%clk 0:03:02]}  dxc4 {[%clk 0:02:57]} 7. Qc2 {[%clk 0:03:02]}  a6 {[%clk 0:02:57]} 8. Rd1 {[%clk 0:03:02]}  b5 {[%clk 0:02:51]} 9. Ne5 {[%clk 0:03:02]}  c6 {[%clk 0:02:49]} 10. b3 {[%clk 0:03:02]}  cxb3 {[%clk 0:02:36]} 11. axb3 {[%clk 0:03:03]}  Bb7 {[%clk 0:02:36]} 12. Ba3 {[%clk 0:03:02]}  Nfd7 {[%clk 0:02:32]} 13. Nd3 {[%clk 0:03:00]}  a5 {[%clk 0:02:29]} 14. Bxe7 {[%clk 0:02:59]}  Qxe7 {[%clk 0:02:30]} 15. Nc3 {[%clk 0:02:59]}  Rc8 {[%clk 0:02:08]} 16. Ne4 {[%clk 0:02:52]}  Na6 {[%clk 0:02:06]} 17. Qd2 {[%clk 0:02:43]}  Nb4 {[%clk 0:02:03]} 18. Nxb4 {[%clk 0:02:31]}  axb4 {[%clk 0:02:04]} 19. Nc5 {[%clk 0:02:29]}  Nxc5 {[%clk 0:01:55]} 20. Qxb4 {[%clk 0:02:27]}  Qf8 {[%clk 0:01:39]} 21. dxc5 {[%clk 0:02:17]}  Rxa1 {[%clk 0:01:36]} 22. Rxa1 {[%clk 0:02:17]}  Ra8 {[%clk 0:01:36]} 23. Rd1 {[%clk 0:02:16]}  Rd8 {[%clk 0:01:35]} 24. Rd6 {[%clk 0:02:13]}  Rc8 {[%clk 0:00:59]} 25. Rd7 {[%clk 0:02:03]}  Ba8 {[%clk 0:00:55]} 26. Qd4 {[%clk 0:02:01]}  g6 {[%clk 0:00:50]} 27. b4 {[%clk 0:01:43]}  Qg7 {[%clk 0:00:49]} 28. Rd8+ {[%clk 0:01:35]}  Rxd8 {[%clk 0:00:49]} 29. Qxd8+ {[%clk 0:01:35]}  Qf8 {[%clk 0:00:50]} 30. Qd7 {[%clk 0:01:36]}  Qg7 {[%clk 0:00:42]} 31. Bxc6 {[%clk 0:01:30]}  Qa1+ {[%clk 0:00:38]} 32. Kg2 {[%clk 0:01:29]}  Bxc6+ {[%clk 0:00:36]} 33. Qxc6 {[%clk 0:01:29]}  Qb1 {[%clk 0:00:37]} 34. Qxb5 {[%clk 0:01:27]}  Qe4+ {[%clk 0:00:36]} 35. f3 {[%clk 0:01:28]}  Qc2 {[%clk 0:00:35]} 36. Qd3 {[%clk 0:01:23]}  Qc1 {[%clk 0:00:35]} 37. Qd8+ {[%clk 0:01:19]}  Kg7 {[%clk 0:00:35]} 38. Qd4+ {[%clk 0:01:20]}  Kg8 {[%clk 0:00:32]} 39. b5 {[%clk 0:01:17]}  Qc2 {[%clk 0:00:31]} 40. Kf2 {[%clk 0:01:16]}  Qb1 {[%clk 0:00:27]} 41. b6 {[%clk 0:01:14]}  Qh1 {[%clk 0:00:28]} 42. Qh4 {[%clk 0:00:57]}  Qb1 {[%clk 0:00:21]} 43. Qd8+ {[%clk 0:00:56]}  Kg7 {[%clk 0:00:22]} 44. Qd4+ {[%clk 0:00:57]}  f6 {[%clk 0:00:20]} 45. c6 {[%clk 0:00:56]}  e5 {[%clk 0:00:19]} 46. Qc5 {[%clk 0:00:52]} 1-0


[Site "https://www.chess.com"]

[Event "Titled Tuesday Blitz November 08 Late 2022"]
[White "Dudzinski, Pawel"]
[Black "Annaberdiyev, Babageldi"]
[WhiteFideId "1117890"]
[BlackFideId "14000385"]
[WhiteElo "2086"]
[BlackElo "2332"]
[Result "0-1"]
[Round "09"]
[TimeControl "180+1"]
[Date "2022.11.09"]
[WhiteClock "0:00:31"]
[BlackClock "0:01:48"]

1. e4 {[%clk 0:02:57]}  e6 {[%clk 0:02:59]} 2. c4 {[%clk 0:02:56]}  d5 {[%clk 0:03:00]} 3. cxd5 {[%clk 0:02:57]}  exd5 {[%clk 0:03:00]} 4. exd5 {[%clk 0:02:58]}  Nf6 {[%clk 0:03:01]} 5. Bb5+ {[%clk 0:02:57]}  Bd7 {[%clk 0:03:01]} 6. Bc4 {[%clk 0:02:57]}  Bd6 {[%clk 0:03:01]} 7. Qe2+ {[%clk 0:02:48]}  Be7 {[%clk 0:03:00]} 8. Nc3 {[%clk 0:02:29]}  O-O {[%clk 0:03:00]} 9. d3 {[%clk 0:02:29]}  Re8 {[%clk 0:03:00]} 10. h3 {[%clk 0:02:27]}  b5 {[%clk 0:02:54]} 11. Bb3 {[%clk 0:02:23]}  a5 {[%clk 0:02:46]} 12. a4 {[%clk 0:02:15]}  bxa4 {[%clk 0:02:42]} 13. Bxa4 {[%clk 0:02:09]}  Bb4 {[%clk 0:02:42]} 14. Be3 {[%clk 0:02:07]}  Nxd5 {[%clk 0:02:40]} 15. Qd2 {[%clk 0:01:45]}  Bxa4 {[%clk 0:02:34]} 16. Rxa4 {[%clk 0:01:45]}  Qg5 {[%clk 0:02:27]} 17. Kf1 {[%clk 0:01:12]}  Nxe3+ {[%clk 0:02:19]} 18. fxe3 {[%clk 0:01:11]}  Rxe3 {[%clk 0:02:12]} 19. h4 {[%clk 0:00:54]}  Qf5+ {[%clk 0:02:07]} 20. Nf3 {[%clk 0:00:53]}  Rxf3+ {[%clk 0:02:03]} 21. gxf3 {[%clk 0:00:47]}  Qxf3+ {[%clk 0:02:04]} 22. Kg1 {[%clk 0:00:43]}  Nc6 {[%clk 0:01:55]} 23. Ne4 {[%clk 0:00:31]}  Bxd2 {[%clk 0:01:48]} 0-1


[Site "https://www.chess.com"]

[Event "Titled Tuesday Blitz November 08 Late 2022"]
[White "Dzierzak, Radoslaw"]
[Black "Janaszak, Dawid"]
[WhiteFideId "1161407"]
[BlackFideId "1119206"]
[WhiteElo "2111"]
[BlackElo "2226"]
[Result "0-1"]
[Round "09"]
[TimeControl "180+1"]
[Date "2022.11.09"]
[WhiteClock "0:00:16"]
[BlackClock "0:01:37"]

1. e4 {[%clk 0:03:00]}  e5 {[%clk 0:02:59]} 2. Nf3 {[%clk 0:03:00]}  Nc6 {[%clk 0:02:59]} 3. Bc4 {[%clk 0:03:00]}  Nf6 {[%clk 0:02:59]} 4. d3 {[%clk 0:02:59]}  d5 {[%clk 0:02:59]} 5. exd5 {[%clk 0:02:58]}  Nxd5 {[%clk 0:03:00]} 6. O-O {[%clk 0:02:57]}  Nb6 {[%clk 0:02:55]} 7. Bb5 {[%clk 0:02:55]}  Bd6 {[%clk 0:02:48]} 8. Re1 {[%clk 0:02:52]}  O-O {[%clk 0:02:47]} 9. Bxc6 {[%clk 0:02:49]}  bxc6 {[%clk 0:02:48]} 10. Nxe5 {[%clk 0:02:49]}  c5 {[%clk 0:02:42]} 11. Qf3 {[%clk 0:02:30]}  Qe7 {[%clk 0:02:37]} 12. Qh5 {[%clk 0:01:06]}  g6 {[%clk 0:01:59]} 13. Qe2 {[%clk 0:00:58]}  Re8 {[%clk 0:01:53]} 14. f4 {[%clk 0:00:48]}  f6 {[%clk 0:01:50]} 15. Nc3 {[%clk 0:00:39]}  fxe5 {[%clk 0:01:49]} 16. fxe5 {[%clk 0:00:38]}  Qxe5 {[%clk 0:01:45]} 17. Qxe5 {[%clk 0:00:24]}  Rxe5 {[%clk 0:01:45]} 18. Rxe5 {[%clk 0:00:17]}  Bxe5 {[%clk 0:01:45]} 19. Be3 {[%clk 0:00:18]}  Bd4 {[%clk 0:01:43]} 20. Bxd4 {[%clk 0:00:18]}  cxd4 {[%clk 0:01:44]} 21. Nb5 {[%clk 0:00:19]}  c5 {[%clk 0:01:41]} 22. Re1 {[%clk 0:00:17]}  Bd7 {[%clk 0:01:38]} 23. Re7 {[%clk 0:00:16]}  Bxb5 {[%clk 0:01:37]} 0-1


[Site "https://www.chess.com"]

[Event "Titled Tuesday Blitz November 08 Late 2022"]
[White "Firouzja, Alireza"]
[Black "Xiong, Jeffery"]
[WhiteFideId "12573981"]
[BlackFideId "2047640"]
[WhiteElo "2903"]
[BlackElo "2725"]
[Result "1-0"]
[Round "09"]
[TimeControl "180+1"]
[Date "2022.11.08"]
[WhiteClock "0:00:08"]
[BlackClock "0:00:06"]

1. e4 {[%clk 0:03:00]}  e5 {[%clk 0:02:57]} 2. Nf3 {[%clk 0:03:01]}  Nc6 {[%clk 0:02:58]} 3. Bb5 {[%clk 0:03:01]}  Nf6 {[%clk 0:02:58]} 4. d3 {[%clk 0:03:01]}  Bc5 {[%clk 0:02:58]} 5. c3 {[%clk 0:03:01]}  O-O {[%clk 0:02:54]} 6. O-O {[%clk 0:03:01]}  Re8 {[%clk 0:02:55]} 7. Bg5 {[%clk 0:02:54]}  h6 {[%clk 0:02:54]} 8. Bh4 {[%clk 0:02:54]}  a6 {[%clk 0:02:54]} 9. Ba4 {[%clk 0:02:53]}  g5 {[%clk 0:02:47]} 10. Bg3 {[%clk 0:02:53]}  b5 {[%clk 0:02:48]} 11. Bb3 {[%clk 0:02:53]}  d6 {[%clk 0:02:48]} 12. Re1 {[%clk 0:02:49]}  Bb6 {[%clk 0:02:46]} 13. Nbd2 {[%clk 0:02:49]}  Bb7 {[%clk 0:02:27]} 14. Nf1 {[%clk 0:02:47]}  Ne7 {[%clk 0:02:25]} 15. Ne3 {[%clk 0:02:46]}  Qd7 {[%clk 0:02:21]} 16. Bxe5 {[%clk 0:02:12]}  dxe5 {[%clk 0:02:21]} 17. Nxe5 {[%clk 0:02:13]}  Qc8 {[%clk 0:02:21]} 18. Bxf7+ {[%clk 0:02:10]}  Kg7 {[%clk 0:02:22]} 19. Bxe8 {[%clk 0:02:09]}  Qxe8 {[%clk 0:02:23]} 20. Qf3 {[%clk 0:02:00]}  Rd8 {[%clk 0:02:13]} 21. N3g4 {[%clk 0:01:58]}  Nxg4 {[%clk 0:02:06]} 22. Nxg4 {[%clk 0:01:59]}  Qf8 {[%clk 0:02:03]} 23. Qg3 {[%clk 0:01:54]}  Ng6 {[%clk 0:02:02]} 24. d4 {[%clk 0:01:54]}  c5 {[%clk 0:02:01]} 25. Qh3 {[%clk 0:01:45]}  Kh7 {[%clk 0:01:46]} 26. e5 {[%clk 0:01:14]}  cxd4 {[%clk 0:01:46]} 27. Nf6+ {[%clk 0:01:12]}  Kg7 {[%clk 0:01:40]} 28. cxd4 {[%clk 0:01:12]}  Bxd4 {[%clk 0:01:35]} 29. Rac1 {[%clk 0:01:12]}  Nxe5 {[%clk 0:01:07]} 30. Rc7+ {[%clk 0:00:14]}  Kxf6 {[%clk 0:01:07]} 31. Rxb7 {[%clk 0:00:14]}  Kg6 {[%clk 0:01:08]} 32. Rf1 {[%clk 0:00:09]}  Rd6 {[%clk 0:00:33]} 33. Kh1 {[%clk 0:00:09]}  Bxb2 {[%clk 0:00:23]} 34. f3 {[%clk 0:00:08]}  Bd4 {[%clk 0:00:18]} 35. g4 {[%clk 0:00:08]}  Kf6 {[%clk 0:00:16]} 36. f4 {[%clk 0:00:08]}  Ke6 {[%clk 0:00:08]} 37. fxe5 {[%clk 0:00:08]}  Qa8 {[%clk 0:00:06]} 38. Qf3 {[%clk 0:00:08]} 1-0


[Site "https://www.chess.com"]

[Event "Titled Tuesday Blitz November 08 Late 2022"]
[White "Floresvillar Gonzalez, Luis Migu"]
[Black "Fiol, Fabrice"]
[WhiteFideId "5100542"]
[BlackFideId "611670"]
[WhiteElo "2040"]
[BlackElo "2444"]
[Result "0-1"]
[Round "09"]
[TimeControl "180+1"]
[Date "2022.11.09"]
[WhiteClock "0:00:11"]
[BlackClock "0:00:39"]

1. e4 {[%clk 0:02:55]}  c5 {[%clk 0:02:59]} 2. d4 {[%clk 0:02:53]}  cxd4 {[%clk 0:02:59]} 3. c3 {[%clk 0:02:54]}  Nf6 {[%clk 0:02:59]} 4. e5 {[%clk 0:02:52]}  Nd5 {[%clk 0:02:59]} 5. Nf3 {[%clk 0:02:52]}  Nc6 {[%clk 0:02:59]} 6. Bc4 {[%clk 0:02:51]}  Nb6 {[%clk 0:02:59]} 7. Bb3 {[%clk 0:02:50]}  g6 {[%clk 0:03:00]} 8. cxd4 {[%clk 0:02:50]}  Bg7 {[%clk 0:02:59]} 9. Nc3 {[%clk 0:02:48]}  O-O {[%clk 0:02:58]} 10. O-O {[%clk 0:02:48]}  d6 {[%clk 0:02:58]} 11. Bf4 {[%clk 0:02:44]}  Bg4 {[%clk 0:02:57]} 12. h3 {[%clk 0:02:39]}  Bxf3 {[%clk 0:02:57]} 13. Qxf3 {[%clk 0:02:39]}  Nxd4 {[%clk 0:02:57]} 14. Qxb7 {[%clk 0:02:32]}  dxe5 {[%clk 0:02:57]} 15. Bg5 {[%clk 0:02:28]}  Bf6 {[%clk 0:02:38]} 16. Bxf6 {[%clk 0:02:26]}  exf6 {[%clk 0:02:38]} 17. Rad1 {[%clk 0:02:25]}  Qd7 {[%clk 0:02:23]} 18. Qxd7 {[%clk 0:02:19]}  Nxd7 {[%clk 0:02:23]} 19. Bd5 {[%clk 0:02:16]}  Rac8 {[%clk 0:02:17]} 20. f4 {[%clk 0:02:15]}  Nb6 {[%clk 0:02:11]} 21. fxe5 {[%clk 0:02:13]}  fxe5 {[%clk 0:02:11]} 22. Be4 {[%clk 0:02:03]}  f5 {[%clk 0:02:06]} 23. Bb7 {[%clk 0:01:51]}  Rc7 {[%clk 0:02:02]} 24. Ba6 {[%clk 0:01:49]}  Kg7 {[%clk 0:01:52]} 25. Rfe1 {[%clk 0:01:49]}  Kf6 {[%clk 0:01:43]} 26. Kf2 {[%clk 0:01:49]}  Rd8 {[%clk 0:01:34]} 27. a4 {[%clk 0:01:48]}  Nc6 {[%clk 0:01:28]} 28. Bb5 {[%clk 0:01:42]}  Rxd1 {[%clk 0:01:21]} 29. Rxd1 {[%clk 0:01:40]}  Ke6 {[%clk 0:01:04]} 30. g4 {[%clk 0:01:19]}  Nd4 {[%clk 0:01:01]} 31. gxf5+ {[%clk 0:01:11]}  gxf5 {[%clk 0:01:02]} 32. Bd3 {[%clk 0:01:05]}  Nc4 {[%clk 0:00:55]} 33. Bxc4+ {[%clk 0:00:58]}  Rxc4 {[%clk 0:00:54]} 34. Rd2 {[%clk 0:00:42]}  Rb4 {[%clk 0:00:55]} 35. Kg3 {[%clk 0:00:26]}  a5 {[%clk 0:00:54]} 36. h4 {[%clk 0:00:22]}  h5 {[%clk 0:00:53]} 37. Rf2 {[%clk 0:00:14]}  f4+ {[%clk 0:00:49]} 38. Kh3 {[%clk 0:00:13]}  Nf5 {[%clk 0:00:46]} 39. Rg2 {[%clk 0:00:12]}  f3 {[%clk 0:00:41]} 40. Rg6+ {[%clk 0:00:11]}  Kf7 {[%clk 0:00:42]} 41. Rg5 {[%clk 0:00:11]}  Rxh4# {[%clk 0:00:39]} 0-1


[Site "https://www.chess.com"]

[Event "Titled Tuesday Blitz November 08 Late 2022"]
[White "Guimaraes, Marcelo Cunha"]
[Black "Kovacevic, Radmila"]
[WhiteFideId "2118068"]
[BlackFideId "933171"]
[WhiteElo "2108"]
[BlackElo "2208"]
[Result "0-1"]
[Round "09"]
[TimeControl "180+1"]
[Date "2022.11.09"]
[WhiteClock "0:01:11"]
[BlackClock "0:01:42"]

1. e4 {[%clk 0:02:58]}  e5 {[%clk 0:02:59]} 2. Nf3 {[%clk 0:02:56]}  f5 {[%clk 0:03:00]} 3. Nxe5 {[%clk 0:02:55]}  Qf6 {[%clk 0:02:59]} 4. d4 {[%clk 0:02:54]}  d6 {[%clk 0:02:59]} 5. Nc4 {[%clk 0:02:53]}  fxe4 {[%clk 0:02:59]} 6. Nc3 {[%clk 0:02:53]}  Qg6 {[%clk 0:02:59]} 7. f3 {[%clk 0:02:53]}  Nf6 {[%clk 0:02:51]} 8. fxe4 {[%clk 0:02:31]}  Be7 {[%clk 0:02:38]} 9. Qf3 {[%clk 0:02:02]}  Bg4 {[%clk 0:02:32]} 10. Qe3 {[%clk 0:01:47]}  O-O {[%clk 0:02:28]} 11. Bd2 {[%clk 0:01:46]}  c6 {[%clk 0:02:13]} 12. h3 {[%clk 0:01:46]}  Be6 {[%clk 0:01:49]} 13. O-O-O {[%clk 0:01:41]}  b5 {[%clk 0:01:49]} 14. Na5 {[%clk 0:01:29]}  b4 {[%clk 0:01:49]} 15. Ne2 {[%clk 0:01:24]}  Nxe4 {[%clk 0:01:48]} 16. Nf4 {[%clk 0:01:23]}  Rxf4 {[%clk 0:01:43]} 17. Qxf4 {[%clk 0:01:20]}  Bg5 {[%clk 0:01:43]} 18. Qxd6 {[%clk 0:01:11]}  Nxd6 {[%clk 0:01:42]} 0-1


[Site "https://www.chess.com"]

[Event "Titled Tuesday Blitz November 08 Late 2022"]
[White "Hansen, Eric"]
[Black "Kavutskiy, Konstantin"]
[WhiteFideId "2606771"]
[BlackFideId "2026384"]
[WhiteElo "2568"]
[BlackElo "2338"]
[Result "1-0"]
[Round "09"]
[TimeControl "180+1"]
[Date "2022.11.08"]
[WhiteClock "0:01:06"]
[BlackClock "0:00:09"]

1. Nf3 {[%clk 0:03:00]}  Nf6 {[%clk 0:02:59]} 2. g3 {[%clk 0:03:01]}  g6 {[%clk 0:03:00]} 3. Bg2 {[%clk 0:03:02]}  Bg7 {[%clk 0:03:00]} 4. O-O {[%clk 0:03:02]}  O-O {[%clk 0:03:01]} 5. d3 {[%clk 0:03:03]}  d5 {[%clk 0:03:00]} 6. c4 {[%clk 0:03:04]}  dxc4 {[%clk 0:02:50]} 7. dxc4 {[%clk 0:03:04]}  Nc6 {[%clk 0:02:51]} 8. Qa4 {[%clk 0:03:01]}  Be6 {[%clk 0:02:47]} 9. Rd1 {[%clk 0:02:59]}  Qc8 {[%clk 0:02:47]} 10. Nc3 {[%clk 0:02:59]}  a6 {[%clk 0:02:44]} 11. Nd5 {[%clk 0:02:52]}  Re8 {[%clk 0:02:37]} 12. Bf4 {[%clk 0:02:49]}  b5 {[%clk 0:01:47]} 13. Nxf6+ {[%clk 0:02:48]}  Bxf6 {[%clk 0:01:42]} 14. cxb5 {[%clk 0:02:49]}  axb5 {[%clk 0:01:35]} 15. Qxb5 {[%clk 0:02:49]}  Qa6 {[%clk 0:01:01]} 16. a4 {[%clk 0:02:43]}  Reb8 {[%clk 0:00:58]} 17. Qxa6 {[%clk 0:02:25]}  Rxa6 {[%clk 0:00:59]} 18. Ng5 {[%clk 0:02:25]}  Bb3 {[%clk 0:00:47]} 19. Rd2 {[%clk 0:02:17]}  Rxa4 {[%clk 0:00:41]} 20. Rc1 {[%clk 0:02:10]}  h6 {[%clk 0:00:35]} 21. Ne4 {[%clk 0:02:06]}  Ne5 {[%clk 0:00:28]} 22. Nc5 {[%clk 0:01:15]}  Ra2 {[%clk 0:00:23]} 23. Nxb3 {[%clk 0:01:10]}  Rxb3 {[%clk 0:00:24]} 24. Bd5 {[%clk 0:01:11]}  Raxb2 {[%clk 0:00:17]} 25. Bxb3 {[%clk 0:01:11]}  Rxb3 {[%clk 0:00:18]} 26. Rxc7 {[%clk 0:01:11]}  Kg7 {[%clk 0:00:18]} 27. Bxe5 {[%clk 0:01:10]}  Bxe5 {[%clk 0:00:18]} 28. Rxe7 {[%clk 0:01:11]}  Bf6 {[%clk 0:00:18]} 29. Ra7 {[%clk 0:01:10]}  Rb8 {[%clk 0:00:12]} 30. Rdd7 {[%clk 0:01:11]}  Rf8 {[%clk 0:00:12]} 31. Kg2 {[%clk 0:01:11]}  h5 {[%clk 0:00:13]} 32. e4 {[%clk 0:01:10]}  Be5 {[%clk 0:00:12]} 33. f4 {[%clk 0:01:11]}  Bc3 {[%clk 0:00:12]} 34. e5 {[%clk 0:01:11]}  Kg8 {[%clk 0:00:12]} 35. Kf3 {[%clk 0:01:11]}  Bb2 {[%clk 0:00:11]} 36. Rab7 {[%clk 0:01:11]}  Bc3 {[%clk 0:00:11]} 37. Ke4 {[%clk 0:01:10]}  Ba1 {[%clk 0:00:11]} 38. h3 {[%clk 0:01:10]}  Bc3 {[%clk 0:00:11]} 39. Kf3 {[%clk 0:01:05]}  Ba1 {[%clk 0:00:10]} 40. g4 {[%clk 0:01:06]}  hxg4+ {[%clk 0:00:10]} 41. Kxg4 {[%clk 0:01:06]}  Bc3 {[%clk 0:00:10]} 42. h4 {[%clk 0:01:06]}  Be1 {[%clk 0:00:09]} 43. e6 {[%clk 0:01:06]} 1-0


[Site "https://www.chess.com"]

[Event "Titled Tuesday Blitz November 08 Late 2022"]
[White "Harish, Neeraj"]
[Black "D`Arruda, Ricardo D."]
[WhiteFideId "30958130"]
[BlackFideId "100692"]
[WhiteElo "1815"]
[BlackElo "2482"]
[Result "0-1"]
[Round "09"]
[TimeControl "180+1"]
[Date "2022.11.09"]
[WhiteClock "0:01:37"]
[BlackClock "0:00:58"]

1. e4 {[%clk 0:03:00]}  c5 {[%clk 0:02:59]} 2. Nf3 {[%clk 0:03:01]}  Nc6 {[%clk 0:02:59]} 3. d4 {[%clk 0:03:01]}  cxd4 {[%clk 0:03:00]} 4. Nxd4 {[%clk 0:03:01]}  e5 {[%clk 0:03:00]} 5. Nb5 {[%clk 0:03:00]}  a6 {[%clk 0:03:01]} 6. Nd6+ {[%clk 0:02:58]}  Bxd6 {[%clk 0:03:01]} 7. Qxd6 {[%clk 0:02:58]}  Qe7 {[%clk 0:03:02]} 8. Qd1 {[%clk 0:02:56]}  Nf6 {[%clk 0:03:01]} 9. Nc3 {[%clk 0:02:55]}  d6 {[%clk 0:03:01]} 10. Bg5 {[%clk 0:02:53]}  Be6 {[%clk 0:03:02]} 11. Bxf6 {[%clk 0:02:49]}  Qxf6 {[%clk 0:03:03]} 12. Nd5 {[%clk 0:02:43]}  Bxd5 {[%clk 0:03:02]} 13. Qxd5 {[%clk 0:02:43]}  O-O {[%clk 0:03:00]} 14. Bc4 {[%clk 0:02:35]}  Rac8 {[%clk 0:02:51]} 15. O-O {[%clk 0:02:33]}  Nd4 {[%clk 0:02:42]} 16. c3 {[%clk 0:02:31]}  Rc5 {[%clk 0:01:55]} 17. Qxb7 {[%clk 0:02:30]}  Rxc4 {[%clk 0:01:55]} 18. cxd4 {[%clk 0:02:29]}  Rxd4 {[%clk 0:01:56]} 19. Qxa6 {[%clk 0:02:29]}  Rxe4 {[%clk 0:01:56]} 20. Rad1 {[%clk 0:02:26]}  Rd8 {[%clk 0:01:55]} 21. Qb6 {[%clk 0:02:24]}  d5 {[%clk 0:01:38]} 22. Qxf6 {[%clk 0:02:21]}  gxf6 {[%clk 0:01:39]} 23. Rfe1 {[%clk 0:02:18]}  Rxe1+ {[%clk 0:01:28]} 24. Rxe1 {[%clk 0:02:18]}  Rb8 {[%clk 0:01:28]} 25. Re2 {[%clk 0:02:16]}  Kf8 {[%clk 0:01:28]} 26. Kf1 {[%clk 0:02:15]}  Ke7 {[%clk 0:01:29]} 27. Rd2 {[%clk 0:02:15]}  d4 {[%clk 0:01:26]} 28. f3 {[%clk 0:02:13]}  Kd6 {[%clk 0:01:25]} 29. Ke2 {[%clk 0:02:13]}  Kd5 {[%clk 0:01:26]} 30. Kd3 {[%clk 0:02:13]}  f5 {[%clk 0:01:26]} 31. Re2 {[%clk 0:02:08]}  Rc8 {[%clk 0:01:20]} 32. a4 {[%clk 0:01:56]}  Ra8 {[%clk 0:01:16]} 33. b3 {[%clk 0:01:53]}  Rc8 {[%clk 0:01:16]} 34. a5 {[%clk 0:01:50]}  Rc3+ {[%clk 0:01:15]} 35. Kd2 {[%clk 0:01:50]}  Rxb3 {[%clk 0:01:15]} 36. Ke1 {[%clk 0:01:46]}  Rb1+ {[%clk 0:01:11]} 37. Kf2 {[%clk 0:01:46]}  Ra1 {[%clk 0:01:10]} 38. Rb2 {[%clk 0:01:46]}  Rxa5 {[%clk 0:01:08]} 39. Rb7 {[%clk 0:01:46]}  Ra2+ {[%clk 0:01:05]} 40. Kf1 {[%clk 0:01:45]}  e4 {[%clk 0:01:04]} 41. fxe4+ {[%clk 0:01:44]}  fxe4 {[%clk 0:01:03]} 42. Rxf7 {[%clk 0:01:45]}  e3 {[%clk 0:00:59]} 43. Rxh7 {[%clk 0:01:37]}  d3 {[%clk 0:00:58]} 44. Ke1 {[%clk 0:01:37]}  Ra1# {[%clk 0:00:58]} 0-1


[Site "https://www.chess.com"]

[Event "Titled Tuesday Blitz November 08 Late 2022"]
[White "Haszon, David"]
[Black "Kumala, Aleksander"]
[WhiteFideId "733610"]
[BlackFideId "1141880"]
[WhiteElo "2211"]
[BlackElo "2269"]
[Result "1/2-1/2"]
[Round "09"]
[TimeControl "180+1"]
[Date "2022.11.09"]
[WhiteClock "0:00:06"]
[BlackClock "0:00:06"]

1. d4 {[%clk 0:03:00]}  Nf6 {[%clk 0:02:59]} 2. c4 {[%clk 0:02:59]}  e5 {[%clk 0:03:00]} 3. dxe5 {[%clk 0:02:58]}  Ng4 {[%clk 0:02:59]} 4. Nf3 {[%clk 0:02:57]}  Bc5 {[%clk 0:02:58]} 5. e3 {[%clk 0:02:56]}  Nc6 {[%clk 0:02:58]} 6. a3 {[%clk 0:02:53]}  a5 {[%clk 0:02:57]} 7. Nc3 {[%clk 0:02:52]}  Ngxe5 {[%clk 0:02:57]} 8. Nxe5 {[%clk 0:02:50]}  Nxe5 {[%clk 0:02:58]} 9. Qd5 {[%clk 0:02:46]}  Qe7 {[%clk 0:02:57]} 10. Bd2 {[%clk 0:02:32]}  O-O {[%clk 0:02:54]} 11. Be2 {[%clk 0:02:32]}  Ra6 {[%clk 0:02:38]} 12. Ne4 {[%clk 0:02:28]}  Ba7 {[%clk 0:02:34]} 13. Bc3 {[%clk 0:02:21]}  Ng6 {[%clk 0:02:24]} 14. Bd3 {[%clk 0:01:57]}  Re6 {[%clk 0:02:07]} 15. Qxa5 {[%clk 0:01:43]}  Bxe3 {[%clk 0:01:30]} 16. fxe3 {[%clk 0:01:36]}  f5 {[%clk 0:01:30]} 17. Qxc7 {[%clk 0:01:26]}  fxe4 {[%clk 0:01:28]} 18. Be2 {[%clk 0:01:25]}  Ne5 {[%clk 0:01:00]} 19. Bb4 {[%clk 0:01:07]}  Qg5 {[%clk 0:00:52]} 20. Bxf8 {[%clk 0:00:28]}  Rc6 {[%clk 0:00:33]} 21. Qb8 {[%clk 0:00:17]}  Kxf8 {[%clk 0:00:19]} 22. O-O+ {[%clk 0:00:16]}  Ke7 {[%clk 0:00:17]} 23. Qa7 {[%clk 0:00:13]}  b6 {[%clk 0:00:15]} 24. Kh1 {[%clk 0:00:10]}  Qxe3 {[%clk 0:00:14]} 25. Rae1 {[%clk 0:00:10]}  Rh6 {[%clk 0:00:09]} 26. Qc7 {[%clk 0:00:08]}  Qg3 {[%clk 0:00:07]} 27. h3 {[%clk 0:00:03]}  Rxh3+ {[%clk 0:00:05]} 28. gxh3 {[%clk 0:00:04]}  Qxh3+ {[%clk 0:00:05]} 29. Kg1 {[%clk 0:00:05]}  Qg3+ {[%clk 0:00:06]} 30. Kh1 {[%clk 0:00:05]}  Qh3+ {[%clk 0:00:06]} 31. Kg1 {[%clk 0:00:06]}  Qg3+ {[%clk 0:00:07]} 32. Kh1 {[%clk 0:00:06]}  Qh3+ {[%clk 0:00:06]} 1/2-1/2


[Site "https://www.chess.com"]